bitfinex-derivatives/quotes_ETHF0:USTF0_20260209
["timestamp","ask_amount","ask_price","bid_price","bid_amount"]
[1770638873899,0.00572009,2033.6,2032.8,0.64744156]
[1770638874802,0.6651469,2033.6,2032.8,0.64744156]
[1770638876405,0.65942681,2033.5,2032.8,0.64744156]
[1770638877104,0.65942681,2033.5,2032.5,0.64744156]
[1770638880605,0.65942681,2033.5,2032.7,0.64744156]
[1770638881805,0.65942681,2033.5,2032.6,0.89367156]
[1770638882311,0.65942681,2033.5,2032.7,0.64744156]
[1770638883512,0.65942681,2033.3,2032.3,0.64744156]
[1770638883711,0.65942681,2033.1,2032.2,0.00615908]
[1770638884714,0.65942681,2033.0,2032.2,0.00615908]
[1770638885014,0.65942681,2032.9,2032.2,0.65360064]
[1770638888015,0.65942681,2033.1,2032.2,0.65360064]
[1770638889217,0.6651469,2033.6,2032.5,0.64744156]
[1770638889520,0.6651469,2033.6,2032.6,0.64744156]
[1770638889716,0.00572009,2033.6,2032.7,0.64744156]
[1770638890117,0.00572009,2033.6,2032.7,3.58215458]
[1770638890313,0.00572009,2033.6,2032.8,7.14506979]
[1770638890515,0.00572009,2033.6,2032.9,0.64744156]
[1770638892420,0.65942681,2034.0,2033.1,0.64744156]
[1770638893525,0.6654724,2034.0,2033.1,0.64744156]
[1770638897324,0.24595,2034.9,2033.1,0.64744156]
[1770638897325,43.93061634,2035.1,2034.1,0.90810584]
[1770638897524,0.45400179,2035.9,2034.1,0.90810584]
[1770638897525,0.45400179,2035.6,2034.3,0.66206584]
[1770638897740,0.45111999,2035.4,2034.4,0.66206584]
[1770638898225,14.50619469,2035.1,2034.4,0.66625967]
[1770638898415,1.20030824,2035.4,2034.4,0.66625967]
[1770638899317,1.1945653,2035.3,2034.4,0.66625967]
[1770638900227,14.51193763,2035.4,2034.4,0.66625967]
[1770638900228,0.00574294,2035.4,2034.6,1.08758879]
[1770638900415,1.1945653,2035.3,2034.6,1.08758879]
[1770638902919,55.31193763,2035.4,2034.4,1.09178262]
[1770638902920,1.1945653,2035.0,2034.4,1.09178262]
[1770638903430,15.70075999,2034.6,2033.9,1.33364879]
[1770638903725,1.1945653,2034.5,2033.9,1.33364879]
[1770638904226,1.1945653,2034.5,2033.9,1.08758879]
[1770638904425,15.70075999,2034.4,2033.9,1.09156793]
[1770638904628,1.1945653,2034.4,2033.9,0.00397914]
[1770638904929,15.70075999,2034.4,2034.0,1.08758879]
[1770638905121,14.50619469,2034.4,2034.0,0.08758879]
[1770638905327,14.50619469,2034.4,2033.9,1.09156793]
[1770638905524,15.70075999,2034.4,2033.9,1.09156793]
[1770638906332,1.1945653,2034.4,2033.9,1.09156793]
[1770638906528,1.1945653,2035.0,2033.9,1.09156793]
[1770638906725,1.1945653,2034.7,2033.9,1.09156793]
[1770638907127,1.1945653,2034.4,2033.5,1.08758879]
[1770638907429,1.1945653,2034.3,2032.8,1.08758879]
[1770638907724,1.1945653,2034.1,2032.8,1.08758879]
[1770638908527,1.1945653,2034.1,2032.8,1.09128301]
[1770638910033,14.50619469,2033.9,2032.8,1.09128301]
[1770638910234,1.1945653,2033.8,2032.8,1.09128301]
[1770638910628,1.1945653,2033.5,2032.8,1.09128301]
[1770638911335,1.1945653,2033.7,2032.8,1.09128301]
[1770638912133,1.1945653,2033.7,2032.8,0.00369422]
[1770638912635,1.1945653,2033.3,2032.8,1.09128301]
[1770638912831,1.1945653,2033.3,2032.8,0.00369422]
[1770638913632,1.1945653,2033.0,2032.2,1.08758879]
[1770638913832,1.1945653,2033.7,2032.2,1.08758879]
[1770638914031,1.1945653,2033.5,2032.2,1.08758879]
[1770638914638,1.1945653,2033.5,2032.2,1.09224758]
[1770638915234,1.1945653,2033.2,2032.2,1.09224758]
[1770638915832,1.1945653,2033.0,2032.2,1.09224758]
[1770638916728,1.1945653,2032.9,2032.2,1.09224758]
[1770638917740,1.1945653,2032.9,2032.2,0.00465879]
[1770638917935,1.1945653,2032.6,2032.2,0.00465879]
[1770638918335,1.1945653,2032.3,2031.8,1.08758879]
[1770638918839,1.1945653,2032.2,2031.8,1.08758879]
[1770638919137,1.1945653,2032.2,2031.5,1.08758879]
[1770638919337,0.00425612,2032.2,2031.5,1.09190379]
[1770638919542,1.1945653,2032.5,2031.6,1.08758879]
[1770638920738,0.00435215,2032.5,2031.8,1.08758879]
[1770638922541,1.1945653,2032.4,2031.8,1.08758879]
[1770638923537,1.1945653,2032.1,2031.6,1.08531906]
[1770638924443,1.1945653,2031.9,2031.5,1.08963406]
[1770638925345,14.50619469,2031.8,2031.5,1.08963406]
[1770638925536,15.04569517,2031.8,2031.5,1.08537794]
[1770638925744,14.50619469,2031.8,2031.5,1.08537794]
[1770638925938,13.90312595,2031.8,2031.5,1.08537794]
[1770638926138,0.53950048,2032.1,2031.5,1.08537794]
[1770638926338,13.40715169,2032.0,2031.5,1.08537794]
[1770638926540,0.59483054,2032.3,2031.5,1.08537794]
[1770638927345,0.59483054,2032.3,2031.6,0.24635]
[1770638927753,14.00817791,2032.1,2031.6,0.24635]
[1770638928048,0.60102622,2032.3,2031.6,0.24635]
[1770638928246,14.00817791,2032.3,2031.6,0.24635]
[1770638929147,0.61008642,2032.2,2031.6,0.24635]
[1770638929943,13.40715169,2032.0,2031.6,0.24635]
[1770638930247,0.61008642,2031.9,2031.5,5.888e-05]
[1770638930550,0.61008642,2032.2,2031.5,0.24640888]
[1770638930948,12.76406169,2032.1,2031.5,0.24640888]
[1770638934252,12.76406169,2032.0,2031.5,0.24640888]
[1770638934453,0.61263679,2032.4,2031.5,0.24640888]
[1770638934654,12.76406169,2032.1,2031.5,0.24640888]
[1770638935654,13.37254915,2032.1,2031.5,0.24640888]
[1770638936556,11.25732169,2032.1,2031.5,0.24640888]
[1770638937253,11.25732169,2032.1,2031.5,9.2416119]
[1770638937254,10.70063169,2032.1,2031.5,9.2416119]
[1770638937556,0.60805365,2032.2,2031.5,6.30689888]
[1770638937957,0.60805365,2032.4,2031.5,6.30689888]
[1770638938158,0.60805365,2032.4,2031.7,0.24634]
[1770638939051,0.60805365,2032.4,2031.8,6.30668606]
[1770638939460,0.60805365,2032.4,2031.9,0.24631]
[1770638940360,0.00435215,2032.5,2031.9,9.24040302]
[1770638940554,0.60816422,2032.8,2032.1,0.24629]
[1770638941559,0.61257283,2032.8,2032.1,0.24629]
[1770638942259,0.61257283,2032.8,2032.1,3.18100302]
[1770638945463,0.61257283,2032.8,2032.2,2.93471302]
[1770638946163,0.61257283,2032.8,2032.3,3.18097302]
[1770638946164,0.00440861,2032.8,2032.3,3.18097302]
[1770638946460,0.60236967,2033.0,2032.5,0.24624]
[1770638947359,0.60691545,2033.2,2032.5,0.24624]
[1770638947554,0.60691545,2033.2,2032.5,3.18095302]
[1770638947555,0.00404938,2033.0,2032.5,3.18095302]
[1770638947960,0.61096483,2033.0,2032.6,2.93471302]
[1770638948160,0.61096483,2033.0,2032.5,3.18095302]
[1770638948366,0.61096483,2033.0,2032.6,2.93471302]
[1770638949062,0.61096483,2033.0,2032.5,3.18095302]
[1770638950167,0.00404938,2033.0,2032.5,3.18095302]
[1770638950364,0.10654301,2033.0,2032.5,3.6566451]
[1770638950669,0.10654301,2033.0,2032.6,3.41075776]
[1770638951364,0.10654301,2033.0,2032.3,2.93471302]
[1770638951365,0.110049,2033.0,2032.3,2.93471302]
[1770638951665,0.53950048,2033.7,2032.9,3.6190958]
[1770638951863,0.53950048,2033.9,2033.2,0.47253875]
[1770638952257,0.53950048,2033.9,2033.0,6.84066182]
[1770638952563,0.54337932,2033.9,2033.0,0.00504394]
[1770638952765,40.8,2033.8,2032.6,3.40725177]
[1770638952958,40.8,2033.8,2032.5,0.73753756]
[1770638952959,0.53950048,2033.7,2032.5,0.73753756]
[1770638953158,0.53950048,2033.7,2032.6,0.49130756]
[1770638953765,0.53950048,2033.7,2032.6,0.49551658]
[1770638953960,0.53950048,2033.7,2032.6,0.00420902]
[1770638954366,3.43987753,2033.7,2032.6,0.00420902]
[1770638954665,0.53950048,2033.6,2032.6,0.00420902]
[1770638958167,0.53950048,2033.6,2032.6,0.49836712]
[1770638958368,0.55825285,2033.4,2032.6,0.49836712]
[1770638960874,0.55825285,2033.4,2032.3,6.54000378]
[1770638961274,0.55825285,2033.4,2032.4,6.2575743]
[1770638961477,0.55825285,2033.4,2032.5,4.77002928]
[1770638961975,0.55825285,2033.4,2032.5,0.24972956]
[1770638963569,0.55825285,2033.4,2032.5,0.00349956]
[1770638965071,0.60126973,2033.2,2032.5,25.00349956]
[1770638969893,0.55825285,2033.8,2032.9,0.57227071]
[1770638970794,0.55825285,2033.8,2033.2,0.57227071]
[1770638971491,0.00387884,2033.9,2033.4,0.57227071]
[1770638971888,0.55825285,2034.0,2033.4,0.57227071]
[1770638972892,0.56376802,2034.0,2033.4,0.57227071]
[1770638973495,0.00551517,2034.0,2033.4,0.57227071]
[1770638974293,0.00551517,2034.0,2033.5,0.57227071]
[1770638974495,0.55825285,2034.2,2033.5,0.57227071]
[1770638974895,0.55825285,2034.2,2033.6,0.57227071]
[1770638975501,0.5629321,2034.2,2033.6,0.57227071]
[1770638975798,0.55825285,2034.9,2033.8,0.57227071]
[1770638975998,0.55825285,2034.9,2033.9,0.57227071]
[1770638976198,0.55825285,2034.9,2034.0,0.57227071]
[1770638976395,0.55825285,2035.1,2034.2,0.57227071]
[1770638976592,0.55825285,2035.1,2034.3,0.57227071]
[1770638976796,0.56460676,2035.1,2034.4,0.57227071]
[1770638977701,0.56460676,2035.1,2034.6,0.57227071]
[1770638977888,1.16830496,2035.1,2034.6,0.57227071]
[1770638978299,1.16830496,2035.1,2034.3,0.00583808]
[1770638978300,0.55825285,2035.0,2034.3,0.00583808]
[1770638978501,0.55825285,2035.0,2034.3,0.57810879]
[1770638978894,0.55825285,2034.9,2034.3,0.57810879]
[1770638979593,0.55825285,2034.8,2034.3,0.00583808]
[1770638979990,0.55825285,2034.5,2034.3,0.00583808]
[1770638980195,0.55825285,2034.5,2033.9,0.81833071]
[1770638980395,0.55825285,2034.5,2033.7,0.57227071]
[1770638980900,0.55825285,2034.3,2033.4,0.57227071]
[1770638981202,0.55825285,2034.3,2033.4,0.57758018]
[1770638981908,0.55825285,2034.0,2033.4,0.57758018]
[1770638982597,0.55825285,2033.9,2033.4,0.57758018]
[1770638984704,0.55825285,2034.9,2034.0,0.57227071]
[1770638985203,0.55825285,2034.8,2034.0,0.57227071]
[1770638985407,0.00635391,2035.1,2034.2,0.58020467]
[1770638985702,0.00635391,2035.1,2034.1,6.05275]
[1770638985703,0.00635391,2035.1,2034.4,0.58020467]
[1770638986098,0.61005211,2035.1,2034.4,0.58020467]
[1770638986703,1.17061277,2035.1,2034.4,0.58020467]
[1770638987006,0.56056066,2035.0,2034.4,0.58020467]
[1770638987703,0.56056066,2035.0,2034.3,0.24602]
[1770638987704,0.00635391,2035.1,2034.6,0.58020467]
[1770638987903,0.56056066,2035.0,2034.6,0.58020467]
[1770638988800,0.24579,2036.2,2034.6,0.58020467]
[1770638989003,0.56056066,2036.7,2034.8,0.58020467]
[1770638989307,5.44574265,2036.4,2034.9,0.58020467]
[1770638989612,0.56056066,2036.1,2034.4,0.58020467]
[1770638989803,0.56497676,2036.1,2034.4,0.5864752]
[1770638990408,0.56497676,2036.1,2034.6,0.58020467]
[1770638990605,0.56497676,2036.1,2034.7,0.58020467]
[1770638990805,0.56497676,2036.1,2035.1,0.58020467]
[1770638991107,0.56497676,2036.1,2035.3,0.58020467]
[1770638991516,0.56497676,2036.1,2035.2,12.65041033]
[1770638991517,0.56497676,2036.1,2035.5,0.58020467]
[1770638991707,0.56497676,2036.1,2035.4,6.35497033]
[1770638991708,0.56056066,2036.7,2035.9,0.58020467]
[1770638992208,0.56056066,2036.7,2036.1,0.58020467]
[1770638992409,0.56056066,2036.9,2036.1,0.58020467]
[1770638992598,0.56439459,2036.9,2036.1,0.58388553]
[1770638993006,0.56439459,2036.9,2036.1,0.00368086]
[1770638993406,0.56439459,2036.9,2035.6,0.58020467]
[1770638994314,0.56439459,2036.9,2035.6,0.00533397]
[1770638994719,0.56056066,2036.7,2035.6,0.00533397]
[1770638997506,0.56056066,2036.5,2035.2,0.24591]
[1770638997706,0.56056066,2036.3,2035.2,0.24591]
[1770638998510,0.56056066,2036.3,2035.2,0.25192328]
[1770638999107,0.56056066,2036.3,2035.2,0.00601328]
[1770638999511,0.56056066,2036.3,2035.2,0.58621795]
[1770639000516,0.56056066,2036.1,2035.2,0.00601328]
[1770639000715,0.56056066,2036.1,2034.7,0.58020467]
[1770639000916,0.56056066,2036.1,2034.9,0.57514488]
[1770639001714,0.56056066,2036.1,2034.9,0.57932916]
[1770639002414,0.56056066,2036.1,2034.9,0.00418428]
[1770639002819,0.56056066,2035.9,2034.9,0.00418428]
[1770639003020,0.24582,2036.0,2034.2,0.24602]
[1770639003021,0.56056066,2035.7,2034.3,0.55058688]
[1770639003221,0.56056066,2035.5,2034.3,0.55058688]
[1770639004221,0.56056066,2035.5,2034.1,0.55477116]
[1770639004917,0.56056066,2035.3,2033.8,0.57109805]
[1770639005415,0.56056066,2035.3,2034.0,0.57109805]
[1770639005819,0.56579241,2035.3,2034.0,0.57523307]
[1770639008718,0.56056066,2035.1,2034.0,0.57523307]
[1770639009126,0.56056066,2035.1,2034.2,0.56185755]
[1770639010022,0.56579241,2035.3,2034.4,0.56185755]
[1770639012027,0.56579241,2035.3,2034.3,0.80756253]
[1770639012215,0.56579241,2035.3,2034.4,0.56154253]
[1770639014924,0.56579241,2035.3,2034.2,5.04910116]
[1770639015226,0.56579241,2035.3,2034.2,0.56491589]
[1770639015826,0.56579241,2035.3,2034.0,0.56883138]
[1770639016228,0.56579241,2035.3,2034.0,0.00413502]
[1770639018030,0.54598862,2035.1,2034.0,0.00413502]
[1770639020723,0.55123957,2034.9,2033.4,0.55918804]
[1770639021231,0.55123957,2034.7,2033.4,0.55918804]
[1770639021636,0.55123957,2034.7,2033.4,0.56427608]
[1770639024732,0.55123957,2034.7,2033.6,0.55660345]
[1770639024936,0.55123957,2034.7,2033.7,0.80269345]
[1770639025139,0.55123957,2034.7,2033.8,0.55660345]
[1770639027036,0.55123957,2034.7,2033.5,0.55913294]
[1770639028535,0.55123957,2034.7,2033.7,0.55913294]
[1770639029641,0.55123957,2034.7,2033.9,0.57077087]
[1770639032335,0.55123957,2034.7,2034.0,0.57077087]
[1770639035341,0.55123957,2035.1,2034.1,0.57077087]
[1770639035636,0.55123957,2035.1,2034.2,3.48178513]
[1770639035837,41.35123957,2035.1,2034.2,0.57077087]
[1770639036037,0.55123957,2035.0,2034.2,0.57077087]
[1770639037944,0.55123957,2035.0,2034.3,0.57077087]
[1770639038145,0.55123957,2035.0,2034.2,2.91101426]
[1770639038439,0.55123957,2035.0,2034.2,0.57077087]
[1770639038644,0.55123957,2035.0,2034.3,0.57077087]
[1770639042446,0.55123957,2035.2,2034.3,0.57077087]
[1770639042645,0.55123957,2035.2,2034.4,0.57077087]
[1770639043146,0.55123957,2035.1,2034.4,0.57077087]
[1770639044049,0.55123957,2035.1,2034.1,2.92179464]
[1770639044350,0.55123957,2035.1,2034.0,3.49256551]
[1770639045651,0.55123957,2035.1,2034.1,0.5654927]
[1770639045851,0.55123957,2035.1,2034.2,0.5654927]
[1770639046650,0.55123957,2035.1,2034.3,0.5654927]
[1770639049560,0.55123957,2035.1,2034.3,25.5654927]
[1770639049759,0.55123957,2035.1,2034.4,0.5654927]
[1770639055059,0.55123957,2035.1,2034.5,0.5654927]
[1770639057168,0.55123957,2035.1,2034.4,4.43884675]
[1770639057370,0.55123957,2035.1,2034.3,27.92179464]
[1770639059767,0.55123957,2035.1,2034.3,25.0]
[1770639060863,0.55123957,2035.1,2034.4,0.5654927]
[1770639063771,0.55123957,2035.1,2034.3,27.92179464]
[1770639063967,0.55123957,2035.1,2034.3,25.0]
[1770639065274,0.55123957,2035.1,2034.3,25.5654927]
[1770639065474,0.55123957,2035.1,2034.3,25.0]
[1770639066671,44.75482663,2035.1,2034.3,25.0]
[1770639066867,0.57949287,2035.0,2034.3,25.0]
[1770639067070,0.57949287,2035.0,2034.3,25.5654927]
[1770639067267,0.57949287,2035.0,2034.4,0.5654927]
[1770639070777,0.57949287,2035.0,2034.3,25.0]
[1770639072375,0.57949287,2035.0,2034.3,25.5654927]
[1770639073072,0.57949287,2035.0,2034.3,25.0]
[1770639074275,3.72803547,2035.0,2034.3,21.93551347]
[1770639074479,0.57949287,2034.8,2034.3,21.93551347]
[1770639074676,0.57949287,2034.7,2034.3,21.93551347]
[1770639076582,42.17298849,2034.8,2034.4,0.59148618]
[1770639076774,14.0,2034.8,2034.4,0.59148618]
[1770639076974,14.59195699,2034.8,2034.4,0.59148618]
[1770639077177,0.59195699,2034.7,2034.3,21.93551347]
[1770639077376,0.59195699,2034.7,2034.3,22.52699965]
[1770639077577,0.59195699,2034.7,2034.4,0.59148618]
[1770639078082,0.59195699,2034.6,2034.3,22.52699965]
[1770639078883,14.55761239,2034.7,2034.3,22.52699965]
[1770639079687,0.55761239,2034.6,2034.3,21.93551347]
[1770639080485,0.55761239,2034.6,2034.3,22.48349808]
[1770639080679,14.0,2034.7,2034.4,0.54798461]
[1770639080885,0.55761239,2034.9,2034.4,0.54798461]
[1770639081188,14.0,2034.9,2034.4,0.54798461]
[1770639081387,0.55761239,2034.8,2034.4,0.54798461]
[1770639082185,14.55761239,2034.9,2034.4,0.54798461]
[1770639082584,14.0,2034.9,2034.4,0.54798461]
[1770639082787,0.59566771,2035.3,2034.5,0.00816932]
[1770639082984,0.59566771,2035.3,2034.6,2.92996396]
[1770639082985,8.44454124,2035.2,2034.6,2.92996396]
[1770639083185,0.00523175,2035.3,2034.5,7.49267943]
[1770639083483,0.00523175,2035.3,2034.6,7.49034339]
[1770639083678,0.00523175,2035.3,2034.6,2.92179464]
[1770639083883,0.00523175,2035.3,2034.5,4.39051675]
[1770639083884,0.00523175,2035.3,2034.7,7.48985832]
[1770639084190,0.00523175,2035.3,2034.6,2.92179464]
[1770639084885,0.00523175,2035.3,2034.7,7.48912989]
[1770639085093,0.00523175,2035.3,2034.7,2.92179464]
[1770639085295,0.00523175,2035.3,2034.6,2.92179464]
[1770639085690,0.00523175,2035.3,2034.7,7.47059725]
[1770639085991,0.59580471,2035.8,2034.7,2.92179464]
[1770639086191,8.44454124,2035.7,2034.7,2.92179464]
[1770639086393,8.44454124,2035.7,2034.8,2.92179464]
[1770639086595,40.8,2035.9,2034.9,26.38579464]
[1770639086787,8.44454124,2035.8,2035.0,4.54612554]
[1770639087188,8.44454124,2035.8,2034.9,26.3896518]
[1770639087386,8.44454124,2035.8,2035.0,4.53968066]
[1770639087694,0.00354593,2035.9,2035.2,2.92179464]
[1770639088592,0.59793897,2035.9,2035.2,2.92179464]
[1770639088890,0.59439304,2035.7,2034.9,0.00385716]
[1770639089383,0.59647666,2035.5,2034.9,0.00385716]
[1770639090791,0.59647666,2035.5,2035.0,0.02614476]
[1770639091395,8.41839648,2035.4,2035.0,0.02614476]
[1770639091692,8.99984472,2035.7,2035.0,0.02614476]
[1770639091892,8.41839648,2035.6,2035.0,0.02614476]
[1770639095297,0.5987405,2035.8,2035.0,0.02614476]
[1770639095492,8.41839648,2035.7,2035.0,0.02614476]
[1770639096499,0.5987405,2035.8,2035.0,0.02614476]
[1770639096698,8.41839648,2035.7,2035.0,0.02614476]
[1770639097099,0.00354593,2035.9,2035.1,0.24592]
[1770639097301,8.41839648,2035.8,2035.1,0.24592]
[1770639098498,0.59988304,2035.7,2035.1,0.24592]
[1770639098999,0.59882824,2035.5,2035.1,0.24592]
[1770639099203,8.41839648,2035.6,2035.1,0.24592]
[1770639099403,9.01722472,2035.6,2035.1,0.24592]
[1770639099606,13.93242472,2035.6,2035.1,0.24592]
[1770639100000,0.59882824,2035.5,2035.1,0.24592]
[1770639100202,13.93242472,2035.6,2035.1,0.24592]
[1770639101801,0.60107366,2035.9,2035.1,0.24592]
[1770639102005,0.59752773,2035.7,2035.1,0.24592]
[1770639102503,7.91798648,2035.6,2035.1,0.24592]
[1770639102709,0.59752773,2035.8,2035.1,0.24592]
[1770639102710,7.91798648,2035.8,2035.1,0.24592]
[1770639103303,7.91798648,2035.8,2035.1,4.70047608]
[1770639103502,7.91798648,2035.8,2035.1,0.24592]
[1770639103704,8.51551774,2035.8,2035.1,0.24592]
[1770639103910,0.59753126,2035.7,2035.1,0.24592]
[1770639104106,7.91798648,2035.8,2035.1,0.24592]
[1770639104411,7.91798648,2035.8,2035.1,7.62260208]
[1770639104611,7.91798648,2035.8,2035.1,3.16771464]
[1770639105312,7.91798648,2035.8,2035.1,0.24592]
[1770639105608,7.91798648,2035.8,2035.1,10.75152991]
[1770639105809,7.91798648,2035.8,2035.1,6.29573]
[1770639106010,0.00354593,2035.9,2035.1,6.29573]
[1770639106207,7.92153241,2035.9,2035.1,9.21752464]
[1770639107003,0.60350784,2036.3,2035.5,0.24586]
[1770639107514,0.58595939,2036.7,2035.8,0.53972394]
[1770639107813,0.58595939,2036.6,2035.8,0.53972394]
[1770639108117,4.9152,2036.4,2036.0,0.53972394]
[1770639109017,0.00386688,2036.6,2036.0,0.53972394]
[1770639109407,0.58982627,2036.6,2036.0,0.53972394]
[1770639109813,0.58982627,2036.6,2035.9,24.65155394]
[1770639110419,0.58982627,2036.6,2035.6,3.44661861]
[1770639110711,0.58982627,2036.6,2035.5,0.53972394]
[1770639110917,0.58982627,2036.6,2035.6,0.53972394]
[1770639114522,0.58595939,2036.4,2035.6,0.53972394]
[1770639115424,0.58595939,2036.4,2035.7,0.78557394]
[1770639115822,0.58595939,2036.4,2035.8,0.53972394]
[1770639117725,0.58982627,2036.6,2035.9,0.53972394]
[1770639119024,0.58982627,2036.6,2035.8,2.90689467]
[1770639119327,0.58982627,2036.6,2035.7,3.69246861]
[1770639120014,0.58982627,2036.6,2035.6,2.90689467]
[1770639120627,0.58982627,2036.6,2035.6,3.44661861]
[1770639120922,0.58982627,2036.6,2035.3,3.44661861]
[1770639121125,0.58982627,2036.6,2035.4,0.53972394]
[1770639121527,0.58982627,2036.6,2035.3,2.90689467]
[1770639121828,0.58982627,2036.6,2035.3,0.53972394]
[1770639122022,0.58982627,2036.6,2035.2,3.15280467]
[1770639122617,0.58982627,2036.6,2035.2,0.24591]
[1770639123130,0.58595939,2036.5,2035.2,0.78563394]
[1770639123420,40.8,2036.4,2035.2,0.78563394]
[1770639123618,0.58595939,2036.3,2035.2,0.78563394]
[1770639124019,0.58595939,2036.3,2035.3,0.53972394]
[1770639126727,0.58595939,2036.3,2035.4,0.53972394]
[1770639127326,0.58595939,2036.3,2035.5,0.53972394]
[1770639127829,0.58595939,2036.3,2035.4,2.90689467]
[1770639128030,0.58595939,2036.3,2035.2,3.69252861]
[1770639128228,0.58595939,2036.3,2035.4,0.53972394]
[1770639128822,0.58595939,2036.3,2035.6,0.53972394]
[1770639130530,0.58595939,2036.5,2035.6,0.53972394]
[1770639130836,0.58595939,2037.6,2036.6,0.53972394]
[1770639131126,0.58595939,2037.6,2036.8,0.53972394]
[1770639131331,0.58595939,2037.6,2036.9,0.53972394]
[1770639131627,0.59143801,2037.6,2036.9,0.54391766]
[1770639132033,0.04955429,2038.3,2036.9,0.54391766]
[1770639132335,0.58595939,2038.9,2037.3,0.56985584]
[1770639132638,0.58595939,2038.8,2037.4,0.53972394]
[1770639133037,0.58595939,2038.5,2037.4,0.53972394]
[1770639135434,0.55241969,2038.2,2037.4,0.53972394]
[1770639135939,0.55241969,2038.1,2037.4,0.53972394]
[1770639136634,40.8,2038.7,2037.4,0.53972394]
[1770639136635,0.55241969,2038.6,2037.4,0.53972394]
[1770639137436,0.55241969,2038.5,2037.4,0.53972394]
[1770639137636,0.55241969,2038.5,2037.2,0.54796252]
[1770639137829,0.55241969,2038.2,2037.2,0.54796252]
[1770639141334,0.58845393,2037.9,2037.0,0.56898723]
[1770639141539,0.58845393,2037.9,2036.9,0.00419372]
[1770639141737,0.58845393,2037.5,2036.9,0.00419372]
[1770639142234,0.58845393,2037.3,2036.9,0.57318095]
[1770639142443,0.1146562,2037.3,2036.9,0.57318095]
[1770639142836,0.58845393,2037.1,2036.2,0.56898723]
[1770639143137,0.58845393,2037.0,2036.2,0.56898723]
[1770639143338,0.58845393,2036.9,2036.2,0.56898723]
[1770639143737,3.73673402,2036.8,2036.2,0.56898723]
[1770639144045,0.58845393,2036.7,2036.2,0.57270926]
[1770639144445,0.58845393,2037.0,2036.2,0.57270926]
[1770639144645,4.32518795,2037.0,2036.2,0.57270926]
[1770639144942,0.58845393,2036.9,2036.2,0.57270926]
[1770639146942,0.26896832,2036.9,2036.2,0.57270926]
[1770639147142,40.8,2037.1,2036.2,0.57270926]
[1770639147345,41.21551939,2037.1,2036.2,0.57270926]
[1770639147541,40.8,2037.1,2036.2,0.57270926]
[1770639147938,0.42080157,2037.3,2036.2,0.57270926]
[1770639148545,40.8,2037.2,2036.2,0.57270926]
[1770639149141,0.42080157,2037.3,2036.2,0.57270926]
[1770639149342,0.41570143,2037.2,2036.2,0.57270926]
[1770639150045,0.41570143,2037.1,2036.2,0.57270926]
[1770639150441,4.15243545,2037.1,2036.2,0.57270926]
[1770639150642,0.41570143,2037.1,2036.2,0.57270926]
[1770639151048,41.22087854,2037.3,2036.2,0.57270926]
[1770639151943,0.41559636,2037.2,2036.2,0.57270926]
[1770639152146,40.80528218,2037.3,2036.2,0.57270926]
[1770639152345,41.22087854,2037.3,2036.2,0.57270926]
[1770639153049,0.42036703,2037.2,2036.2,0.57270926]
[1770639153651,40.80528218,2037.3,2036.2,0.57270926]
[1770639154348,41.22564921,2037.3,2036.4,0.56898723]
[1770639154746,3.73673402,2037.2,2036.4,0.56898723]
[1770639154944,3.25759195,2037.2,2036.4,0.56898723]
[1770639155544,3.68219546,2037.2,2036.4,0.56898723]
[1770639155850,3.25759195,2037.2,2036.4,0.56898723]
[1770639156050,3.25759195,2037.2,2036.5,0.24576]
[1770639156248,10.203,2037.7,2037.0,0.56898723]
[1770639156249,0.42460351,2037.7,2037.0,0.56898723]
[1770639156748,3.25759195,2037.6,2037.0,0.56898723]
[1770639156947,0.39737657,2037.9,2037.0,0.56898723]
[1770639157251,3.25759195,2037.8,2037.0,0.56898723]
[1770639157755,0.39737657,2037.7,2037.2,0.56898723]
[1770639158248,0.00519866,2037.9,2037.2,0.56898723]
[1770639158249,3.25759195,2037.5,2037.2,0.56898723]
[1770639158646,0.40257523,2037.9,2037.2,0.56898723]
[1770639158854,3.25759195,2037.7,2037.2,0.56898723]
[1770639159548,0.00519866,2037.9,2037.2,0.56898723]
[1770639159752,2.06903273,2037.6,2037.2,0.56898723]
[1770639159954,0.59365259,2037.9,2037.2,0.56898723]
[1770639160148,0.58845393,2037.6,2037.2,0.56898723]
[1770639160344,0.58845393,2037.6,2037.1,0.81466723]
[1770639160852,0.58845393,2037.3,2036.7,0.56898723]
[1770639161951,0.26907013,2037.3,2036.7,0.56898723]
[1770639162251,0.58845393,2037.5,2036.7,0.56898723]
[1770639162455,0.58845393,2037.6,2036.9,0.56898723]
[1770639163551,2.06903273,2037.5,2036.9,0.56898723]
[1770639164142,1.4303661,2037.5,2036.9,0.56898723]
[1770639164346,2.01882003,2037.5,2037.0,0.56898723]
[1770639164550,1.4303661,2037.5,2037.0,0.56898723]
[1770639164947,0.95136775,2037.5,2037.0,0.56898723]
[1770639165652,0.54131904,2037.8,2037.2,0.56401628]
[1770639166349,0.54131904,2037.8,2037.1,0.24568]
[1770639166653,0.54131904,2037.8,2037.1,0.80969628]
[1770639167156,0.00519866,2037.9,2037.2,0.56401628]
[1770639167352,0.54131904,2037.8,2037.1,0.24568]
[1770639167553,0.54131904,2037.8,2036.9,2.90366409]
[1770639167854,0.54131904,2037.8,2036.8,3.46768037]
[1770639168252,0.54131904,2037.8,2036.9,0.56401628]
[1770639168659,0.54131904,2037.8,2037.1,0.56401628]
[1770639170451,8.66e-06,2037.9,2037.3,0.56401628]
[1770639170652,8.66e-06,2037.9,2037.5,0.56401628]
[1770639170851,0.54131904,2038.1,2037.5,0.56401628]
[1770639171051,0.54131904,2038.5,2037.5,0.56401628]
[1770639171253,0.54131904,2038.5,2037.6,0.56401628]
[1770639171871,0.54652289,2038.5,2037.4,3.71333037]
[1770639172056,0.54652289,2038.5,2037.4,0.80966628]
[1770639172261,0.54652289,2038.5,2037.4,0.24565]
[1770639172657,0.54652289,2038.5,2037.2,0.56401628]
[1770639172856,0.54131904,2038.2,2036.9,3.14937409]
[1770639173057,0.54131904,2038.2,2037.0,0.56401628]
[1770639173759,0.54131904,2038.2,2036.9,0.80972628]
[1770639173962,0.54131904,2038.2,2037.0,0.56401628]
[1770639174860,0.54131904,2038.2,2037.2,0.56401628]
[1770639177064,0.54131904,2038.1,2037.2,0.56401628]
[1770639177263,0.22203423,2038.1,2037.2,0.56401628]
[1770639178766,0.54131904,2038.4,2037.3,0.56401628]
[1770639179360,0.54131904,2038.2,2037.3,0.56401628]
[1770639180869,0.54131904,2038.2,2037.1,0.56401628]
[1770639182570,0.54131904,2038.2,2037.2,0.56401628]
[1770639183269,0.54131904,2038.2,2037.3,0.56401628]
[1770639183463,0.54131904,2038.2,2037.2,2.90366409]
[1770639183668,0.54131904,2038.2,2037.2,3.46768037]
[1770639183861,0.54131904,2038.2,2037.1,2.90366409]
[1770639184066,0.54131904,2038.2,2037.1,3.46768037]
[1770639184267,0.54131904,2038.2,2037.1,2.90366409]
[1770639184472,0.54131904,2038.1,2037.1,0.56401628]
[1770639184872,0.54131904,2037.9,2037.1,0.56401628]
[1770639185262,0.54131904,2037.9,2037.2,0.56401628]